[Event "Late-Titled-Tuesday-Blitz-July-09-2024"]
[Site "Chess.com"]
[Date "2024.07.09"]
[Round "4"]
[White "Trovita84"]
[Black "fmshawnrl123"]
[Result "0-1"]
[WhiteElo "2394"]
[BlackElo "2859"]
[TimeControl "180+1"]
[EndTime "14:35:59 PDT"]
[Termination "fmshawnrl123 won by resignation"]

1. e4 {[%clk 0:02:55.7]} 1... c5 {[%clk 0:02:59.4]} 2. Nf3 {[%clk 0:02:56.1]}
2... Nc6 {[%clk 0:02:59.3]} 3. Bb5 {[%clk 0:02:56.3]} 3... Nf6 {[%clk
0:02:57.6]} 4. d3 {[%clk 0:02:52.7]} 4... Qa5+ {[%clk 0:02:55.3]} 5. Nc3 {[%clk
0:02:52.7]} 5... e6 {[%clk 0:02:55.9]} 6. Bxc6 {[%clk 0:02:52.3]} 6... bxc6
{[%clk 0:02:55.2]} 7. O-O {[%clk 0:02:53.2]} 7... Qc7 {[%clk 0:02:50]} 8. Re1
{[%clk 0:02:50.4]} 8... e5 {[%clk 0:02:50]} 9. a4 {[%clk 0:02:46.9]} 9... d6
{[%clk 0:02:48.7]} 10. b3 {[%clk 0:02:45.7]} 10... g6 {[%clk 0:02:46.7]} 11. a5
{[%clk 0:02:36.2]} 11... Bg7 {[%clk 0:02:45]} 12. h3 {[%clk 0:02:36.3]} 12...
O-O {[%clk 0:02:44.7]} 13. Nh2 {[%clk 0:02:29.5]} 13... Rb8 {[%clk 0:02:43.8]}
14. Ra4 {[%clk 0:02:28.6]} 14... Nh5 {[%clk 0:02:41.6]} 15. Ng4 {[%clk
0:02:21.8]} 15... Kh8 {[%clk 0:02:37.7]} 16. Bh6 {[%clk 0:02:09.1]} 16... f5
{[%clk 0:02:02]} 17. Bxg7+ {[%clk 0:02:07]} 17... Qxg7 {[%clk 0:02:00.9]} 18.
exf5 {[%clk 0:01:59.3]} 18... gxf5 {[%clk 0:01:52.5]} 19. Nxe5 {[%clk 0:01:55]}
19... Rg8 {[%clk 0:01:51.7]} 20. g3 {[%clk 0:01:24]} 20... Nxg3 {[%clk
0:01:45.7]} 21. Nf7+ {[%clk 0:01:22.7]} 21... Qxf7 {[%clk 0:01:43.6]} 22. fxg3
{[%clk 0:01:22]} 22... Rxg3+ {[%clk 0:01:34.9]} 23. Kh2 {[%clk 0:01:21.3]} 23...
f4 {[%clk 0:01:35.5]} 0-1

[Event "Late-Titled-Tuesday-Blitz-July-09-2024"]
[Site "Chess.com"]
[Date "2024.07.09"]
[Round "4"]
[White "cristiano78"]
[Black "Itay121"]
[Result "0-1"]
[WhiteElo "2257"]
[BlackElo "2525"]
[TimeControl "180+1"]
[EndTime "14:36:13 PDT"]
[Termination "Itay121 won by resignation"]

1. d4 {[%clk 0:03:00.6]} 1... Nf6 {[%clk 0:02:59.6]} 2. c4 {[%clk 0:03:00.6]}
2... e6 {[%clk 0:02:59.7]} 3. Nf3 {[%clk 0:03:01]} 3... b6 {[%clk 0:02:56.8]} 4.
g3 {[%clk 0:03:00.8]} 4... Bb7 {[%clk 0:02:57.1]} 5. Bg2 {[%clk 0:03:00.7]} 5...
Be7 {[%clk 0:02:56.8]} 6. O-O {[%clk 0:03:00.7]} 6... O-O {[%clk 0:02:56.5]} 7.
Nc3 {[%clk 0:03:01.1]} 7... Ne4 {[%clk 0:02:56.4]} 8. Qc2 {[%clk 0:03:00.8]}
8... Nxc3 {[%clk 0:02:55.9]} 9. Qxc3 {[%clk 0:03:01]} 9... f5 {[%clk 0:02:52.4]}
10. b3 {[%clk 0:03:01.2]} 10... d6 {[%clk 0:02:51.9]} 11. Bb2 {[%clk 0:03:01.8]}
11... Nd7 {[%clk 0:02:51.6]} 12. Rfe1 {[%clk 0:02:58.6]} 12... Nf6 {[%clk
0:02:50.6]} 13. Ng5 {[%clk 0:02:56.9]} 13... Bxg2 {[%clk 0:02:44.3]} 14. Nxe6
{[%clk 0:02:56.3]} 14... Qc8 {[%clk 0:02:43.5]} 15. Nxf8 {[%clk 0:02:55.8]}
15... Bb7 {[%clk 0:02:36.7]} 16. Nxh7 {[%clk 0:02:54.4]} 16... Kxh7 {[%clk
0:02:34.7]} 17. d5 {[%clk 0:02:52.9]} 17... Qf8 {[%clk 0:02:26.9]} 18. Qf3
{[%clk 0:02:47.5]} 18... Ne4 {[%clk 0:02:23.3]} 19. Rad1 {[%clk 0:02:45.4]}
19... Qf7 {[%clk 0:02:19.1]} 20. Kg2 {[%clk 0:02:34.6]} 20... Rf8 {[%clk
0:02:17.3]} 21. Rd3 {[%clk 0:02:33.4]} 21... Kg8 {[%clk 0:02:16.9]} 22. Re3
{[%clk 0:02:32.5]} 22... Bg5 {[%clk 0:02:10.9]} 23. Rd3 {[%clk 0:02:31.9]} 23...
Nd2 {[%clk 0:02:06.2]} 24. Rxd2 {[%clk 0:02:18.4]} 24... Bxd2 {[%clk 0:02:07.1]}
25. Rd1 {[%clk 0:02:18.8]} 25... Bg5 {[%clk 0:02:00.3]} 26. h4 {[%clk
0:02:17.8]} 26... Bf6 {[%clk 0:01:59.1]} 27. Bc1 {[%clk 0:02:12.8]} 27... Be5
{[%clk 0:01:55.6]} 28. h5 {[%clk 0:02:04]} 28... Bc8 {[%clk 0:01:43.7]} 29. Rh1
{[%clk 0:01:59.9]} 29... f4 {[%clk 0:01:39]} 30. g4 {[%clk 0:02:00]} 30... Qd7
{[%clk 0:01:37.4]} 31. Kh3 {[%clk 0:01:56.8]} 31... a5 {[%clk 0:01:29.6]} 32. a4
{[%clk 0:01:55.5]} 32... Qe7 {[%clk 0:01:27.2]} 33. Rg1 {[%clk 0:01:54.3]} 33...
Qg5 {[%clk 0:01:26.9]} 34. Kh2 {[%clk 0:01:52.3]} 34... Qh4+ {[%clk 0:01:25.9]}
35. Qh3 {[%clk 0:01:51.7]} 35... f3+ {[%clk 0:01:22.7]} 0-1

[Event "Late-Titled-Tuesday-Blitz-July-09-2024"]
[Site "Chess.com"]
[Date "2024.07.09"]
[Round "4"]
[White "nitpicker"]
[Black "tandercat"]
[Result "1-0"]
[WhiteElo "2299"]
[BlackElo "1912"]
[TimeControl "180+1"]
[EndTime "14:36:35 PDT"]
[Termination "nitpicker won on time"]

1. d4 {[%clk 0:03:00.9]} 1... e6 {[%clk 0:02:58.2]} 2. c4 {[%clk 0:03:00.4]}
2... f5 {[%clk 0:02:56.3]} 3. Nf3 {[%clk 0:02:55.4]} 3... Nf6 {[%clk 0:02:55.8]}
4. Qc2 {[%clk 0:02:53.9]} 4... b6 {[%clk 0:02:51]} 5. a3 {[%clk 0:02:53]} 5...
Bb7 {[%clk 0:02:48.8]} 6. Nbd2 {[%clk 0:02:52.9]} 6... d6 {[%clk 0:02:38.8]} 7.
e3 {[%clk 0:02:52.6]} 7... Nbd7 {[%clk 0:02:34.2]} 8. Bd3 {[%clk 0:02:52.2]}
8... Qe7 {[%clk 0:02:25.5]} 9. O-O {[%clk 0:02:47.3]} 9... O-O-O {[%clk
0:02:04.8]} 10. e4 {[%clk 0:02:46.8]} 10... g6 {[%clk 0:01:46.3]} 11. b4 {[%clk
0:02:44.5]} 11... h5 {[%clk 0:01:22.9]} 12. Bb2 {[%clk 0:02:41.9]} 12... h4
{[%clk 0:01:15.2]} 13. Rfe1 {[%clk 0:02:33.2]} 13... h3 {[%clk 0:01:12.5]} 14.
g3 {[%clk 0:02:08.4]} 14... fxe4 {[%clk 0:00:50.9]} 15. Nxe4 {[%clk 0:02:07.4]}
15... Bg7 {[%clk 0:00:28.8]} 16. Qe2 {[%clk 0:02:05.9]} 16... Rde8 {[%clk
0:00:14.2]} 17. Neg5 {[%clk 0:02:05.8]} 17... e5 {[%clk 0:00:10.8]} 18. Bxg6
{[%clk 0:01:56.6]} 1-0

[Event "Late-Titled-Tuesday-Blitz-July-09-2024"]
[Site "Chess.com"]
[Date "2024.07.09"]
[Round "4"]
[White "lluiss"]
[Black "LoonsDeKoeben"]
[Result "0-1"]
[WhiteElo "2210"]
[BlackElo "2438"]
[TimeControl "180+1"]
[EndTime "14:36:44 PDT"]
[Termination "LoonsDeKoeben won by resignation"]

1. e4 {[%clk 0:03:00.9]} 1... e5 {[%clk 0:02:59.6]} 2. Nf3 {[%clk 0:03:00.3]}
2... Nc6 {[%clk 0:03:00.1]} 3. Bb5 {[%clk 0:03:00]} 3... a6 {[%clk 0:02:58.9]}
4. Ba4 {[%clk 0:03:00]} 4... Nf6 {[%clk 0:02:59]} 5. O-O {[%clk 0:02:59.2]} 5...
b5 {[%clk 0:02:58.9]} 6. Bb3 {[%clk 0:02:58.4]} 6... Bc5 {[%clk 0:02:59.4]} 7.
h3 {[%clk 0:02:49.5]} 7... Bb7 {[%clk 0:02:45.5]} 8. d3 {[%clk 0:02:37.8]} 8...
h6 {[%clk 0:02:34.2]} 9. a4 {[%clk 0:02:37.2]} 9... b4 {[%clk 0:02:21.6]} 10. c3
{[%clk 0:02:34.7]} 10... d6 {[%clk 0:02:14.5]} 11. d4 {[%clk 0:02:32]} 11... Bb6
{[%clk 0:01:50]} 12. dxe5 {[%clk 0:02:25.4]} 12... dxe5 {[%clk 0:01:32]} 13.
cxb4 {[%clk 0:02:20.1]} 13... Qxd1 {[%clk 0:01:27.2]} 14. Bxd1 {[%clk
0:02:15.7]} 14... Nxb4 {[%clk 0:01:22.9]} 15. Nxe5 {[%clk 0:02:12.9]} 15... Nxe4
{[%clk 0:01:06.4]} 16. a5 {[%clk 0:02:12.9]} 16... Bd4 {[%clk 0:01:01.9]} 17.
Ba4+ {[%clk 0:02:11.3]} 17... Ke7 {[%clk 0:00:46.7]} 18. Bd2 {[%clk 0:02:09.4]}
18... Nxd2 {[%clk 0:00:44]} 19. Nxd2 {[%clk 0:02:07.7]} 19... Bxe5 {[%clk
0:00:44.4]} 20. Rfe1 {[%clk 0:01:56.2]} 20... Kf6 {[%clk 0:00:44.8]} 21. Rxe5
{[%clk 0:01:33.9]} 21... Kxe5 {[%clk 0:00:43.5]} 22. Nc4+ {[%clk 0:01:34.1]}
22... Kf6 {[%clk 0:00:40.9]} 0-1

[Event "Late-Titled-Tuesday-Blitz-July-09-2024"]
[Site "Chess.com"]
[Date "2024.07.09"]
[Round "4"]
[White "Veleamater"]
[Black "ritanovikova"]
[Result "1-0"]
[WhiteElo "2432"]
[BlackElo "2143"]
[TimeControl "180+1"]
[EndTime "14:36:49 PDT"]
[Termination "Veleamater won by resignation"]

1. g3 {[%clk 0:03:00.9]} 1... g6 {[%clk 0:02:58.6]} 2. Bg2 {[%clk 0:03:01.1]}
2... Bg7 {[%clk 0:02:59.3]} 3. d3 {[%clk 0:03:01.7]} 3... Nf6 {[%clk 0:02:59.7]}
4. Nf3 {[%clk 0:03:02.3]} 4... O-O {[%clk 0:03:00.1]} 5. O-O {[%clk 0:03:03.2]}
5... d5 {[%clk 0:02:52.3]} 6. Nc3 {[%clk 0:03:04.1]} 6... Nbd7 {[%clk
0:02:41.5]} 7. e4 {[%clk 0:03:02.9]} 7... dxe4 {[%clk 0:02:39.5]} 8. dxe4 {[%clk
0:03:03.1]} 8... e5 {[%clk 0:02:37]} 9. h3 {[%clk 0:03:03]} 9... Re8 {[%clk
0:02:32.8]} 10. Qe2 {[%clk 0:03:01.7]} 10... c6 {[%clk 0:02:25.1]} 11. Rd1
{[%clk 0:03:01.5]} 11... Qc7 {[%clk 0:02:24.6]} 12. Be3 {[%clk 0:03:01.5]} 12...
Nb6 {[%clk 0:02:22.6]} 13. a4 {[%clk 0:03:00.5]} 13... Be6 {[%clk 0:02:17.8]}
14. b3 {[%clk 0:02:59.5]} 14... a5 {[%clk 0:02:02.1]} 15. Ng5 {[%clk 0:02:56.8]}
15... h6 {[%clk 0:01:59.1]} 16. Nxe6 {[%clk 0:02:56.2]} 16... Rxe6 {[%clk
0:01:59.8]} 17. f4 {[%clk 0:02:56.5]} 17... exf4 {[%clk 0:01:57.2]} 18. gxf4
{[%clk 0:02:56.5]} 18... Nh5 {[%clk 0:01:16.5]} 19. e5 {[%clk 0:02:45.5]} 19...
Nd7 {[%clk 0:00:55.3]} 20. Qf2 {[%clk 0:02:35.3]} 20... Nxe5 {[%clk 0:00:49.4]}
21. fxe5 {[%clk 0:02:31.6]} 21... Bxe5 {[%clk 0:00:40.3]} 22. Bd4 {[%clk
0:02:29.5]} 22... Bg3 {[%clk 0:00:38.1]} 23. Qf3 {[%clk 0:02:25.6]} 23... Rae8
{[%clk 0:00:34.2]} 24. Rf1 {[%clk 0:02:21.8]} 24... f5 {[%clk 0:00:28.9]} 25.
Rad1 {[%clk 0:02:05.7]} 25... c5 {[%clk 0:00:23.4]} 26. Bf2 {[%clk 0:02:02.1]}
26... Bxf2+ {[%clk 0:00:19.8]} 27. Qxf2 {[%clk 0:02:02.3]} 27... Qc6 {[%clk
0:00:17.6]} 28. Bxc6 {[%clk 0:02:01.3]} 1-0

[Event "Late-Titled-Tuesday-Blitz-July-09-2024"]
[Site "Chess.com"]
[Date "2024.07.09"]
[Round "4"]
[White "malakismayil"]
[Black "Sanyura"]
[Result "1-0"]
[WhiteElo "2534"]
[BlackElo "2677"]
[TimeControl "180+1"]
[EndTime "14:37:04 PDT"]
[Termination "malakismayil won on time"]

1. e4 {[%clk 0:03:00.9]} 1... c6 {[%clk 0:02:59.4]} 2. d4 {[%clk 0:03:00.2]}
2... d5 {[%clk 0:03:00]} 3. Nc3 {[%clk 0:03:00.7]} 3... dxe4 {[%clk 0:02:59.2]}
4. Nxe4 {[%clk 0:03:01.6]} 4... Nf6 {[%clk 0:02:59.3]} 5. Nxf6+ {[%clk
0:03:01.5]} 5... exf6 {[%clk 0:03:00.2]} 6. c3 {[%clk 0:03:00.9]} 6... Bd6
{[%clk 0:03:00.8]} 7. Bd3 {[%clk 0:03:01.4]} 7... O-O {[%clk 0:03:01.5]} 8. Ne2
{[%clk 0:03:01.9]} 8... Re8 {[%clk 0:03:00.8]} 9. Qc2 {[%clk 0:03:02.8]} 9... h5
{[%clk 0:03:00.8]} 10. Be3 {[%clk 0:03:03.3]} 10... Nd7 {[%clk 0:02:59.5]} 11.
O-O-O {[%clk 0:03:03.9]} 11... Nf8 {[%clk 0:02:59.9]} 12. c4 {[%clk 0:03:04.4]}
12... Be6 {[%clk 0:02:59.6]} 13. Kb1 {[%clk 0:03:02.7]} 13... b5 {[%clk
0:02:59.7]} 14. d5 {[%clk 0:02:55.7]} 14... cxd5 {[%clk 0:02:59.5]} 15. c5
{[%clk 0:02:53.9]} 15... Be5 {[%clk 0:02:57]} 16. Bxb5 {[%clk 0:02:52.3]} 16...
Re7 {[%clk 0:02:50.2]} 17. f4 {[%clk 0:02:49.7]} 17... Bxb2 {[%clk 0:02:40.4]}
18. Kxb2 {[%clk 0:02:26.9]} 18... Rb8 {[%clk 0:02:39]} 19. Nd4 {[%clk
0:02:26.6]} 19... Bd7 {[%clk 0:01:59.3]} 20. c6 {[%clk 0:02:11.1]} 20... Be8
{[%clk 0:00:49.8]} 21. Ka1 {[%clk 0:02:00.7]} 21... a6 {[%clk 0:00:25]} 22. Bd3
{[%clk 0:01:46.7]} 22... Qd6 {[%clk 0:00:01.8]} 23. Nf5 {[%clk 0:01:41.7]} 1-0

[Event "Late-Titled-Tuesday-Blitz-July-09-2024"]
[Site "Chess.com"]
[Date "2024.07.09"]
[Round "4"]
[White "FollowRivers"]
[Black "Ganziitoo"]
[Result "1-0"]
[WhiteElo "2491"]
[BlackElo "2308"]
[TimeControl "180+1"]
[EndTime "14:37:04 PDT"]
[Termination "FollowRivers won by resignation"]

1. d4 {[%clk 0:03:00.9]} 1... d5 {[%clk 0:02:58.1]} 2. c4 {[%clk 0:03:00.5]}
2... e6 {[%clk 0:02:58]} 3. Nc3 {[%clk 0:02:59.9]} 3... Nf6 {[%clk 0:02:58.6]}
4. Nf3 {[%clk 0:02:59.1]} 4... Be7 {[%clk 0:02:58]} 5. e3 {[%clk 0:02:59]} 5...
O-O {[%clk 0:02:58.3]} 6. Bd3 {[%clk 0:02:58.8]} 6... b6 {[%clk 0:02:58.3]} 7.
O-O {[%clk 0:02:58.3]} 7... Bb7 {[%clk 0:02:58.9]} 8. Qe2 {[%clk 0:02:57.6]}
8... c5 {[%clk 0:02:58.7]} 9. Rd1 {[%clk 0:02:56.7]} 9... Nc6 {[%clk 0:02:57.1]}
10. dxc5 {[%clk 0:02:37.4]} 10... bxc5 {[%clk 0:02:56.8]} 11. b3 {[%clk
0:02:33.7]} 11... Re8 {[%clk 0:02:33.3]} 12. Bb2 {[%clk 0:02:28.2]} 12... Qc7
{[%clk 0:02:10.6]} 13. cxd5 {[%clk 0:02:20]} 13... exd5 {[%clk 0:02:11.5]} 14.
Rac1 {[%clk 0:02:19.5]} 14... Rad8 {[%clk 0:02:08.2]} 15. Na4 {[%clk 0:02:18.7]}
15... Nb4 {[%clk 0:02:07.7]} 16. Bxf6 {[%clk 0:02:12.5]} 16... Bxf6 {[%clk
0:02:05.4]} 17. Nxc5 {[%clk 0:02:07.7]} 17... Nxd3 {[%clk 0:02:02.3]} 18. Qxd3
{[%clk 0:02:01.3]} 18... Ba8 {[%clk 0:01:47.1]} 19. Ne6 {[%clk 0:02:00.8]} 19...
Qd7 {[%clk 0:01:42.2]} 20. Nxd8 {[%clk 0:01:59.6]} 20... Qxd8 {[%clk 0:01:42.6]}
21. Nd4 {[%clk 0:01:55.8]} 21... h5 {[%clk 0:01:41.5]} 22. Qa6 {[%clk
0:01:43.5]} 22... Qd7 {[%clk 0:01:38]} 23. Rc2 {[%clk 0:01:40.8]} 23... h4
{[%clk 0:01:38]} 24. h3 {[%clk 0:01:40.1]} 24... Be5 {[%clk 0:01:38]} 25. Nf3
{[%clk 0:01:35.8]} 25... Bf6 {[%clk 0:01:36.4]} 26. Rdc1 {[%clk 0:01:33.9]}
26... d4 {[%clk 0:01:31.7]} 27. Nxd4 {[%clk 0:01:25.2]} 27... Bxd4 {[%clk
0:01:26.2]} 28. exd4 {[%clk 0:01:16.3]} 28... Qd5 {[%clk 0:01:24.4]} 29. Qf1
{[%clk 0:01:14]} 29... Qf5 {[%clk 0:01:06.2]} 30. Rc5 {[%clk 0:01:09.8]} 30...
Qd7 {[%clk 0:01:00]} 31. d5 {[%clk 0:01:07.4]} 1-0

[Event "Late-Titled-Tuesday-Blitz-July-09-2024"]
[Site "Chess.com"]
[Date "2024.07.09"]
[Round "4"]
[White "Vaporwaffle94"]
[Black "AlphaPerseii"]
[Result "1-0"]
[WhiteElo "2284"]
[BlackElo "2381"]
[TimeControl "180+1"]
[EndTime "14:37:09 PDT"]
[Termination "Vaporwaffle94 won by resignation"]

1. e4 {[%clk 0:03:00.9]} 1... e6 {[%clk 0:02:59.7]} 2. d4 {[%clk 0:03:00.1]}
2... d5 {[%clk 0:03:00.4]} 3. exd5 {[%clk 0:03:00.5]} 3... exd5 {[%clk
0:03:00.7]} 4. Bd3 {[%clk 0:03:01.1]} 4... c6 {[%clk 0:03:01]} 5. Qf3 {[%clk
0:03:00.6]} 5... Bd6 {[%clk 0:02:52.6]} 6. h3 {[%clk 0:03:00.8]} 6... Be6 {[%clk
0:02:34.1]} 7. Bf4 {[%clk 0:03:00.2]} 7... Ne7 {[%clk 0:02:19]} 8. Bxd6 {[%clk
0:02:53.2]} 8... Qxd6 {[%clk 0:02:18.1]} 9. c3 {[%clk 0:02:54.1]} 9... Nd7
{[%clk 0:02:10.8]} 10. Nd2 {[%clk 0:02:53.2]} 10... a5 {[%clk 0:01:44.8]} 11.
Ne2 {[%clk 0:02:52.2]} 11... a4 {[%clk 0:01:43.9]} 12. a3 {[%clk 0:02:51.2]}
12... O-O {[%clk 0:01:40.3]} 13. Qf4 {[%clk 0:02:51.5]} 13... Nc8 {[%clk
0:01:29.3]} 14. O-O {[%clk 0:02:50.5]} 14... Qxf4 {[%clk 0:00:57.8]} 15. Nxf4
{[%clk 0:02:51.4]} 15... Nd6 {[%clk 0:00:58.5]} 16. Rfe1 {[%clk 0:02:50.2]}
16... Rae8 {[%clk 0:00:55.8]} 17. Re3 {[%clk 0:02:47.8]} 17... Re7 {[%clk
0:00:46.2]} 18. Rae1 {[%clk 0:02:46.2]} 18... Rfe8 {[%clk 0:00:46.5]} 19. Nf3
{[%clk 0:02:43]} 19... h6 {[%clk 0:00:40.8]} 20. Ne5 {[%clk 0:02:41]} 20... Nf8
{[%clk 0:00:29.5]} 21. Bc2 {[%clk 0:02:33.8]} 21... Bc8 {[%clk 0:00:20.8]} 22.
Bxa4 {[%clk 0:02:31.7]} 22... f6 {[%clk 0:00:21.2]} 23. Ng4 {[%clk 0:02:32.1]}
23... Rxe3 {[%clk 0:00:17.9]} 24. Nxe3 {[%clk 0:02:33]} 24... Nc4 {[%clk
0:00:14.8]} 25. Re2 {[%clk 0:02:30.9]} 25... Nxe3 {[%clk 0:00:08.2]} 26. fxe3
{[%clk 0:02:31.8]} 26... Bf5 {[%clk 0:00:08.5]} 27. Kf2 {[%clk 0:02:26.3]} 27...
g5 {[%clk 0:00:08.3]} 28. Nh5 {[%clk 0:02:25.9]} 28... Kf7 {[%clk 0:00:08.5]}
29. Ng3 {[%clk 0:02:25.8]} 29... Bd3 {[%clk 0:00:08.2]} 30. Rd2 {[%clk
0:02:25.3]} 30... Be4 {[%clk 0:00:07.9]} 31. Nxe4 {[%clk 0:02:24.7]} 31... Rxe4
{[%clk 0:00:08.8]} 32. Bc2 {[%clk 0:02:24.7]} 32... Re7 {[%clk 0:00:08.2]} 33.
Re2 {[%clk 0:02:25.5]} 33... Ne6 {[%clk 0:00:07.2]} 34. e4 {[%clk 0:02:25.5]}
34... Nf4 {[%clk 0:00:07.4]} 35. Re3 {[%clk 0:02:25.6]} 35... dxe4 {[%clk
0:00:04.4]} 36. Rxe4 {[%clk 0:02:26.5]} 36... Rxe4 {[%clk 0:00:03.3]} 37. Bxe4
{[%clk 0:02:27.4]} 37... Ke6 {[%clk 0:00:03.7]} 38. Ke3 {[%clk 0:02:22.5]} 38...
f5 {[%clk 0:00:03.8]} 39. Bf3 {[%clk 0:02:21.6]} 39... Ng6 {[%clk 0:00:03.6]}
40. c4 {[%clk 0:02:20.7]} 40... Ne7 {[%clk 0:00:01.7]} 41. b4 {[%clk 0:02:20.2]}
41... f4+ {[%clk 0:00:02.3]} 42. Ke4 {[%clk 0:02:19.6]} 42... Nf5 {[%clk
0:00:02.9]} 43. Bg4 {[%clk 0:02:20]} 1-0

[Event "Late-Titled-Tuesday-Blitz-July-09-2024"]
[Site "Chess.com"]
[Date "2024.07.09"]
[Round "4"]
[White "Slovineanu"]
[Black "duone"]
[Result "1-0"]
[WhiteElo "2531"]
[BlackElo "2316"]
[TimeControl "180+1"]
[EndTime "14:37:12 PDT"]
[Termination "Slovineanu won by resignation"]

1. d4 {[%clk 0:02:58]} 1... Nf6 {[%clk 0:02:58]} 2. Nf3 {[%clk 0:02:58]} 2... g6
{[%clk 0:02:54.5]} 3. Nbd2 {[%clk 0:02:57.2]} 3... Bg7 {[%clk 0:02:54.7]} 4. e4
{[%clk 0:02:57.2]} 4... d6 {[%clk 0:02:54.9]} 5. Bb5+ {[%clk 0:02:57.7]} 5... c6
{[%clk 0:02:53.9]} 6. Bd3 {[%clk 0:02:58.2]} 6... Nbd7 {[%clk 0:02:52.7]} 7. O-O
{[%clk 0:02:57.9]} 7... e5 {[%clk 0:02:53.3]} 8. dxe5 {[%clk 0:02:56.4]} 8...
dxe5 {[%clk 0:02:52.9]} 9. a4 {[%clk 0:02:53.1]} 9... O-O {[%clk 0:02:52.4]} 10.
b4 {[%clk 0:02:52.3]} 10... a5 {[%clk 0:02:50.7]} 11. bxa5 {[%clk 0:02:51.8]}
11... Qxa5 {[%clk 0:02:49]} 12. Nc4 {[%clk 0:02:48.8]} 12... Qc7 {[%clk
0:02:49.2]} 13. Ba3 {[%clk 0:02:46.6]} 13... c5 {[%clk 0:02:48.6]} 14. a5 {[%clk
0:02:40.8]} 14... Nh5 {[%clk 0:02:43.1]} 15. g3 {[%clk 0:02:37.2]} 15... Rd8
{[%clk 0:02:33]} 16. Qe2 {[%clk 0:02:29.2]} 16... Nf8 {[%clk 0:02:14.8]} 17. Bb2
{[%clk 0:02:28]} 17... f6 {[%clk 0:02:11.1]} 18. Nb6 {[%clk 0:02:10]} 18... Rb8
{[%clk 0:02:05.6]} 19. Bc4+ {[%clk 0:02:08]} 19... Be6 {[%clk 0:02:04.8]} 20.
Nd2 {[%clk 0:01:58.1]} 20... Qf7 {[%clk 0:02:01.2]} 21. Bc3 {[%clk 0:01:52.6]}
21... Bh6 {[%clk 0:01:53.1]} 22. Bxe6 {[%clk 0:01:48.5]} 22... Nxe6 {[%clk
0:01:52.7]} 23. Nd5 {[%clk 0:01:34.8]} 23... Nd4 {[%clk 0:01:49.5]} 24. Bxd4
{[%clk 0:01:34.3]} 24... cxd4 {[%clk 0:01:49.5]} 25. Nc4 {[%clk 0:01:29]} 25...
Rxd5 {[%clk 0:01:48.6]} 26. exd5 {[%clk 0:01:27.4]} 26... Qxd5 {[%clk
0:01:49.2]} 27. Nb6 {[%clk 0:01:26.1]} 27... Qc6 {[%clk 0:01:45.3]} 28. Qc4+
{[%clk 0:01:20.2]} 28... Qxc4 {[%clk 0:01:45.3]} 29. Nxc4 {[%clk 0:01:20.6]}
29... Rc8 {[%clk 0:01:45.9]} 30. Nd6 {[%clk 0:01:18.5]} 30... Rc7 {[%clk
0:01:37.9]} 31. Rfb1 {[%clk 0:01:17.7]} 31... Rxc2 {[%clk 0:01:31.5]} 32. Nxb7
{[%clk 0:01:16.7]} 32... e4 {[%clk 0:01:15.4]} 33. a6 {[%clk 0:01:14.3]} 33...
Rc8 {[%clk 0:01:15.2]} 34. a7 {[%clk 0:01:13.7]} 34... Ra8 {[%clk 0:01:15]} 35.
Nc5 {[%clk 0:01:08]} 35... Rxa7 {[%clk 0:01:13.6]} 36. Rxa7 {[%clk 0:01:06.3]}
36... e3 {[%clk 0:01:12.8]} 37. Rb8+ {[%clk 0:01:03.5]} 37... Bf8 {[%clk
0:01:12.3]} 38. Ne6 {[%clk 0:01:03.3]} 38... exf2+ {[%clk 0:01:05.2]} 39. Kxf2
{[%clk 0:01:04.2]} 1-0

[Event "Late-Titled-Tuesday-Blitz-July-09-2024"]
[Site "Chess.com"]
[Date "2024.07.09"]
[Round "4"]
[White "Marks1420"]
[Black "ivanquiroga"]
[Result "0-1"]
[WhiteElo "2532"]
[BlackElo "2396"]
[TimeControl "180+1"]
[EndTime "14:37:15 PDT"]
[Termination "ivanquiroga won by resignation"]

1. e4 {[%clk 0:03:00.9]} 1... e5 {[%clk 0:02:58.9]} 2. Nc3 {[%clk 0:03:00.6]}
2... Nc6 {[%clk 0:02:59]} 3. Bc4 {[%clk 0:02:59.7]} 3... d6 {[%clk 0:02:58.4]}
4. d3 {[%clk 0:02:58.2]} 4... Na5 {[%clk 0:02:58.7]} 5. Bb3 {[%clk 0:02:57.6]}
5... Nxb3 {[%clk 0:02:58.8]} 6. axb3 {[%clk 0:02:57.5]} 6... g6 {[%clk
0:02:54.9]} 7. f4 {[%clk 0:02:57.5]} 7... Bg7 {[%clk 0:02:55.2]} 8. Nf3 {[%clk
0:02:56.6]} 8... Ne7 {[%clk 0:02:55]} 9. O-O {[%clk 0:02:54.2]} 9... O-O {[%clk
0:02:55.4]} 10. Be3 {[%clk 0:02:51.5]} 10... h6 {[%clk 0:02:54.9]} 11. d4 {[%clk
0:02:50.7]} 11... exf4 {[%clk 0:02:53.5]} 12. Bxf4 {[%clk 0:02:50.1]} 12... f5
{[%clk 0:02:53.1]} 13. e5 {[%clk 0:02:49.5]} 13... g5 {[%clk 0:02:51]} 14. Bd2
{[%clk 0:02:48.6]} 14... dxe5 {[%clk 0:02:45.5]} 15. dxe5 {[%clk 0:02:46.3]}
15... Ng6 {[%clk 0:02:37]} 16. Qe2 {[%clk 0:02:41.4]} 16... Re8 {[%clk
0:02:25.9]} 17. Rad1 {[%clk 0:02:38.1]} 17... Qe7 {[%clk 0:02:02.6]} 18. Nd5
{[%clk 0:02:29.2]} 18... Qf7 {[%clk 0:01:54]} 19. Bc3 {[%clk 0:02:24.9]} 19...
c6 {[%clk 0:01:40.8]} 20. Nb4 {[%clk 0:02:22.7]} 20... g4 {[%clk 0:01:35.5]} 21.
Nd4 {[%clk 0:02:20.4]} 21... Bxe5 {[%clk 0:01:27.6]} 22. Qd3 {[%clk 0:02:11.4]}
22... Nf4 {[%clk 0:01:17.4]} 23. Rxf4 {[%clk 0:02:01]} 23... Bxf4 {[%clk
0:01:16.6]} 24. Rf1 {[%clk 0:02:01.6]} 24... Be3+ {[%clk 0:01:14.6]} 25. Kh1
{[%clk 0:02:00.7]} 25... f4 {[%clk 0:01:05.6]} 26. Ne2 {[%clk 0:01:24.5]} 26...
Bf5 {[%clk 0:01:04.5]} 27. Qc4 {[%clk 0:01:24]} 27... Qxc4 {[%clk 0:01:04.2]}
28. bxc4 {[%clk 0:01:24.9]} 28... f3 {[%clk 0:01:03.9]} 29. Ng3 {[%clk
0:01:22.6]} 29... fxg2+ {[%clk 0:01:03.8]} 30. Kxg2 {[%clk 0:01:22.7]} 30... Bg6
{[%clk 0:01:00.2]} 31. Nd3 {[%clk 0:01:19.8]} 31... Rf8 {[%clk 0:00:55.7]} 32.
Re1 {[%clk 0:01:17.4]} 32... Bxd3 {[%clk 0:00:50.8]} 33. Rxe3 {[%clk 0:01:16.9]}
33... Bxc4 {[%clk 0:00:43.7]} 34. Re4 {[%clk 0:01:12.9]} 34... Bd5 {[%clk
0:00:43.3]} 0-1